bitfinex/quotes_ETHUSD_20260125
["timestamp","ask_amount","ask_price","bid_price","bid_amount"]
[1769375305349,0.743,2819.1,2818.1,0.88712252]
[1769375305550,0.743,2819.1,2818.2,0.06744405]
[1769375307088,0.128,2819.8,2818.6,0.06744405]
[1769375307256,0.743,2819.4,2818.4,0.06744405]
[1769375308961,0.743,2819.4,2818.4,0.95446812]
[1769375309157,0.743,2819.4,2818.4,0.06744405]
[1769375310073,0.743,2819.4,2818.6,0.06744405]
[1769375312089,0.001,2819.2,2818.6,0.06744405]
[1769375317390,0.001,2819.2,2818.4,0.06744405]
[1769375317586,0.001,2819.2,2818.6,0.06744405]
[1769375318166,0.001,2819.2,2818.8,0.06744405]
[1769375318372,0.743,2819.9,2818.9,0.06744405]
[1769375318886,11.87117896,2820.1,2819.2,0.06744405]
[1769375318887,0.743,2820.1,2819.2,0.06744405]
[1769375319992,0.743,2820.1,2819.0,0.06744405]
[1769375319993,11.87117896,2820.7,2819.5,0.06744405]
[1769375320198,0.743,2820.6,2819.5,0.06744405]
[1769375320891,0.743,2820.6,2819.7,0.06744405]
[1769375321282,0.743,2820.6,2819.3,12.86526296]
[1769375321283,13.50051632,2820.6,2819.3,12.86526296]
[1769375321483,13.50051632,2820.6,2819.6,0.06744405]
[1769375321688,12.61417896,2820.6,2819.6,0.06744405]
[1769375322393,13.50052436,2820.6,2819.6,0.06744405]
[1769375324498,13.50052436,2820.6,2819.5,0.06744405]
[1769375324805,0.001,2820.4,2819.5,0.06744405]
[1769375325007,0.001,2820.4,2819.7,0.06744405]
[1769375325714,0.001,2820.4,2819.5,0.06744405]
[1769375325870,0.001,2820.4,2819.5,0.9541101]
[1769375326070,0.001,2820.4,2819.7,0.06744405]
[1769375326304,0.001,2820.4,2819.5,0.06744405]
[1769375326972,11.87117896,2820.2,2818.8,0.06744405]
[1769375328289,11.87117896,2820.2,2818.6,0.95439328]
[1769375328290,11.87117896,2819.7,2818.6,0.95439328]
[1769375328494,0.743,2819.6,2818.6,0.95439328]
[1769375328693,0.743,2819.6,2818.6,0.9543989]
[1769375330091,0.73413664,2819.6,2818.6,0.9543989]
[1769375330265,0.73413664,2819.6,2818.8,0.06744405]
[1769375333011,0.73413664,2819.6,2818.6,0.9543903]
[1769375333713,0.73413664,2819.6,2818.8,0.06744405]
[1769375334710,0.73413664,2819.6,2819.0,0.06744405]
[1769375335099,0.743,2819.7,2819.0,0.06744405]
[1769375336138,0.88647893,2820.2,2819.4,0.06744405]
[1769375336434,0.743,2820.1,2819.4,0.06744405]
[1769375336609,11.87217896,2820.4,2819.6,0.06744405]
[1769375336780,0.001,2820.4,2819.7,0.06744405]
[1769375337116,0.001,2820.4,2819.9,0.06744405]
[1769375337412,0.001,2820.4,2819.7,0.06744405]
[1769375337614,0.001,2820.4,2819.9,0.06744405]
[1769375338516,11.87217896,2820.4,2819.3,0.95416606]
[1769375338719,11.87217896,2820.4,2819.5,0.06744405]
[1769375339415,0.001,2820.4,2819.9,0.06744405]
[1769375340408,0.001,2820.4,2819.7,0.06744405]
[1769375341004,0.001,2820.4,2819.3,0.06744405]
[1769375341005,11.87217896,2820.4,2819.3,0.06744405]
[1769375341217,0.88643052,2820.3,2819.3,0.06744405]
[1769375341417,0.88643052,2820.3,2818.9,15.45853828]
[1769375341418,12.75760948,2820.3,2819.2,0.06744405]
[1769375341999,12.75760948,2820.3,2819.0,0.002]
[1769375342000,11.87117896,2820.2,2819.0,0.002]
[1769375342201,16.62425202,2819.8,2819.0,0.002]
[1769375342398,12.61417896,2819.7,2819.0,0.002]
[1769375343417,13.05218201,2819.7,2819.0,0.002]
[1769375344620,13.05218201,2819.7,2818.8,0.002]
[1769375345391,4.75307306,2819.9,2818.9,0.06744405]
[1769375345392,5.63964718,2819.9,2818.9,0.06744405]
[1769375345605,0.743,2819.8,2818.9,0.06744405]
[1769375346015,4.75307306,2819.9,2819.1,0.06744405]
[1769375346223,0.743,2819.8,2818.9,0.06744405]
[1769375346530,13.05218201,2819.8,2818.8,0.002]
[1769375347106,13.05218201,2819.8,2818.4,0.06744405]
[1769375347508,12.30918201,2819.6,2818.4,0.06744405]
[1769375348031,12.30918201,2819.6,2818.3,0.88905515]
[1769375348032,17.06225507,2819.4,2818.3,0.002]
[1769375348609,17.06225507,2819.4,2818.8,0.002]
[1769375348927,12.30918201,2819.3,2818.3,0.002]
[1769375349520,13.19595825,2819.3,2818.3,0.002]
[1769375352822,0.743,2819.2,2818.3,0.002]
[1769375353212,0.743,2819.2,2818.2,0.06744405]
[1769375353535,0.743,2819.2,2818.3,0.06744405]
[1769375353719,0.743,2819.2,2818.2,0.06744405]
[1769375354039,0.743,2819.2,2818.3,0.06744405]
[1769375354335,0.743,2819.2,2818.1,0.06744405]
[1769375354505,0.743,2819.2,2818.3,0.06744405]
[1769375354712,0.743,2819.2,2818.1,0.06744405]
[1769375354911,0.743,2819.2,2818.3,0.06744405]
[1769375355210,0.743,2819.2,2818.2,0.06744405]
[1769375355408,0.743,2819.2,2818.1,0.06744405]
[1769375355730,12.76198533,2819.2,2818.2,0.06744405]
[1769375355925,13.64876425,2819.2,2818.1,0.06744405]
[1769375356120,13.64876425,2819.2,2817.9,3.61617458]
[1769375356121,4.75307306,2818.9,2818.2,0.06744405]
[1769375356317,4.75307306,2818.9,2818.1,0.06744405]
[1769375356643,4.75307306,2818.9,2818.2,0.06744405]
[1769375357209,12.01898533,2818.8,2817.8,0.002]
[1769375357408,4.75307306,2818.9,2818.2,0.06744405]
[1769375357612,5.15020502,2818.9,2818.0,0.95459555]
[1769375357834,5.15020502,2818.9,2818.2,0.06744405]
[1769375360741,5.15020502,2818.9,2818.4,0.002]
[1769375364515,12.01898533,2819.7,2819.1,0.06744405]
[1769375364718,12.01898533,2819.7,2818.7,0.06744405]
[1769375364917,1.62960317,2819.8,2818.4,0.002]
[1769375364918,5.15020502,2819.5,2818.4,0.002]
[1769375365215,12.01898533,2819.4,2818.4,0.06944405]
[1769375368317,12.90570321,2819.4,2818.4,0.002]
[1769375369883,12.01898533,2819.1,2818.4,0.002]
[1769375370040,12.01898533,2818.9,2818.4,0.002]
[1769375371078,12.01898533,2818.9,2818.1,0.002]
[1769375371638,12.01898533,2818.5,2818.1,0.002]
[1769375371833,12.01898533,2818.3,2818.1,0.002]
[1769375372476,17.16919035,2818.6,2818.1,0.002]
[1769375372768,0.743,2818.5,2818.1,0.002]
[1769375375978,1.6299972,2818.5,2818.1,0.002]
[1769375376269,13.55162761,2818.5,2817.8,0.002]
[1769375376646,6.78020222,2818.5,2817.8,0.002]
[1769375376849,11.92163041,2818.4,2817.8,0.002]
[1769375378191,11.92163041,2818.2,2817.0,0.06944405]
[1769375378346,11.92163041,2818.0,2817.0,0.002]
[1769375378546,11.92163041,2817.8,2817.0,0.002]
[1769375379855,17.07183543,2818.1,2817.3,0.06744405]
[1769375380061,0.743,2818.0,2817.1,0.06744405]
[1769375380263,0.743,2818.0,2817.3,0.06744405]
[1769375380799,0.743,2818.0,2817.2,0.06744405]
[1769375381185,0.743,2818.0,2817.0,0.06944405]
[1769375381186,1.63015821,2818.0,2817.0,0.06944405]
[1769375381347,13.55178862,2818.0,2817.0,0.06944405]
[1769375381548,11.92163041,2817.9,2817.0,0.002]
[1769375382248,12.80884148,2817.9,2817.0,0.002]
[1769375384247,11.92163041,2817.9,2817.4,0.002]
[1769375384560,0.743,2817.8,2817.4,0.002]
[1769375384763,0.001,2818.2,2817.5,0.06744405]
[1769375385180,0.001,2818.2,2817.4,0.06944405]
[1769375385802,0.001,2818.2,2817.6,0.06744405]
[1769375386189,12.8097258,2818.2,2817.4,0.002]
[1769375389764,11.92263041,2818.2,2817.4,0.002]
[1769375390189,12.80972196,2818.2,2817.4,0.002]
[1769375390395,11.92263041,2818.2,2817.4,0.002]
[1769375391286,12.80972953,2818.2,2817.4,0.002]
[1769375393301,11.92263041,2818.2,2817.4,0.002]
[1769375394013,0.001,2818.2,2817.5,0.06744405]
[1769375394378,0.001,2818.2,2817.6,0.06744405]
[1769375394682,0.743,2818.4,2817.8,0.06744405]
[1769375394884,0.743,2818.4,2818.0,0.06744405]
[1769375395098,11.92163041,2818.8,2817.8,0.06744405]
[1769375395264,11.92163041,2818.8,2817.8,0.95465426]
[1769375395471,0.743,2818.9,2818.0,0.06744405]
[1769375396002,0.743,2818.9,2817.8,5.51124398]
[1769375396179,0.743,2818.9,2818.0,0.06744405]
[1769375400210,12.66463041,2818.9,2818.0,0.06744405]
[1769375400606,13.55150279,2818.9,2818.0,0.06744405]
[1769375400775,12.66463041,2818.9,2818.0,0.06744405]
[1769375401402,13.55150376,2818.9,2817.8,0.06744405]
[1769375401702,11.92163041,2818.8,2817.6,0.95671421]
[1769375402001,11.92163041,2818.8,2817.6,0.002]
[1769375403492,12.05858355,2818.6,2817.6,0.002]
[1769375406100,12.05858355,2818.4,2817.6,0.002]
[1769375406304,12.05858355,2818.2,2817.6,0.002]
[1769375406506,12.80158355,2818.2,2817.6,0.002]
[1769375406804,12.80158355,2818.2,2817.4,0.002]
[1769375407104,12.80158355,2818.2,2817.1,0.002]
[1769375407302,12.05858355,2818.1,2817.1,0.002]
[1769375408081,12.05858355,2817.9,2817.1,0.002]
[1769375408982,12.05858355,2818.6,2817.4,0.06744405]
[1769375409177,12.05858355,2818.4,2817.4,0.06744405]
[1769375409481,0.001,2818.0,2817.4,0.53719154]
[1769375409681,0.001,2818.0,2817.4,0.06744405]
[1769375410308,0.001,2818.0,2817.3,0.88935587]
[1769375410507,0.001,2818.0,2817.4,0.06744405]
[1769375413627,0.001,2818.0,2817.3,0.002]
[1769375413783,12.05958355,2818.0,2817.3,0.002]
[1769375414287,12.94674178,2818.0,2817.3,0.002]
[1769375415990,12.94674178,2818.0,2817.1,0.002]
[1769375416882,12.94674178,2818.0,2816.4,0.002]
[1769375416883,11.79657796,2817.4,2816.4,0.002]
[1769375417083,11.79657796,2817.2,2816.2,0.002]
[1769375417279,11.79657796,2817.0,2816.2,0.002]
[1769375418817,12.68404855,2817.0,2816.2,0.002]
[1769375421087,12.68404855,2817.0,2816.4,0.002]
[1769375421286,12.68404855,2817.0,2816.2,0.002]
[1769375426437,11.79657796,2816.8,2816.0,0.002]
[1769375428431,11.79657796,2816.6,2816.0,0.002]
[1769375428631,11.79657796,2816.4,2816.0,0.002]
[1769375429038,11.79657796,2816.4,2815.9,0.002]
[1769375429212,11.79657796,2816.4,2815.5,0.002]
[1769375429729,12.68414142,2816.7,2815.6,0.06744405]
[1769375429906,0.744,2816.6,2815.7,0.06744405]
[1769375430109,3.54985276,2817.1,2815.7,0.06744405]
[1769375430110,11.79657796,2817.4,2815.9,0.06744405]
[1769375430432,0.8873297,2817.5,2816.5,0.06744405]
[1769375430643,12.54057796,2817.5,2816.5,0.06744405]
[1769375430949,12.54057796,2817.5,2816.1,0.06744405]
[1769375431702,12.54057796,2817.5,2815.9,0.06744405]
[1769375432047,0.744,2817.4,2816.2,0.06744405]
[1769375432203,11.79657796,2817.3,2816.2,0.06744405]
[1769375432918,12.68398389,2817.2,2816.0,0.06744405]
[1769375433128,12.68398389,2817.2,2816.0,0.62697392]
[1769375433300,11.79657796,2817.2,2816.1,0.88774723]
[1769375433498,0.001,2816.8,2816.2,0.95516129]
[1769375433698,3.54904175,2817.7,2816.4,0.06744405]
[1769375433699,12.81877386,2817.6,2816.4,0.06744405]
[1769375435305,11.93149391,2817.6,2816.4,0.95509767]
[1769375435530,12.81878188,2817.6,2816.4,0.06744405]
[1769375436339,12.81878188,2817.6,2814.7,0.002]
[1769375436340,11.93149391,2815.7,2814.7,0.002]
[1769375436504,1.80421797,2816.0,2814.7,0.002]
[1769375436505,11.93149391,2815.3,2814.7,0.002]
[1769375436708,11.93149391,2815.3,2814.5,0.002]
[1769375437017,11.93149391,2815.1,2814.5,0.002]
[1769375439050,11.93149391,2814.9,2814.5,0.002]
[1769375439245,11.93149391,2814.7,2814.3,0.002]
[1769375439744,0.744,2814.8,2814.3,0.002]
[1769375440043,0.744,2815.4,2814.4,0.06744405]
[1769375440557,0.744,2815.4,2814.3,0.002]
[1769375440906,12.67549391,2815.4,2814.3,0.002]
[1769375441108,13.56349296,2815.4,2814.4,0.06744405]
[1769375441754,13.56349296,2815.4,2814.3,0.002]
[1769375441922,0.88780623,2816.0,2814.8,0.06744405]
[1769375442251,11.93149391,2816.0,2814.4,0.06744405]
[1769375443060,11.93149391,2815.8,2814.4,0.06744405]
[1769375443226,11.93149391,2815.8,2814.8,0.06744405]
[1769375443550,0.88781561,2815.9,2815.0,0.06744405]
[1769375445540,0.88778409,2816.0,2814.8,0.06744405]
[1769375445735,0.88778409,2816.0,2815.0,0.06744405]
[1769375446119,0.001,2815.7,2815.0,0.06744405]
[1769375446858,12.81914107,2816.5,2815.4,0.06744405]
[1769375447055,0.744,2816.4,2815.4,0.06744405]
[1769375447456,0.88768952,2816.3,2815.4,0.06744405]
[1769375447958,11.93149391,2816.2,2814.8,0.06744405]
[1769375448614,11.93149391,2816.2,2814.7,0.002]
[1769375448820,11.93149391,2816.2,2814.8,0.06744405]
[1769375449021,11.93149391,2816.0,2814.7,0.002]
[1769375449218,0.128,2816.1,2814.7,0.002]
[1769375449219,11.93149391,2815.8,2814.7,0.002]
[1769375449458,4.29463292,2816.4,2814.5,0.002]
[1769375449459,11.93149391,2815.2,2814.5,0.002]
[1769375449666,11.93149391,2815.0,2814.5,0.002]
[1769375450947,12.67549391,2815.0,2814.5,0.002]
[1769375451855,11.93149391,2815.0,2814.5,0.002]
[1769375452056,12.81959665,2815.0,2814.5,0.002]
[1769375455759,0.128,2815.7,2814.8,0.06744405]
[1769375455967,0.05,2816.7,2815.2,0.06744405]
[1769375455968,0.88777575,2816.1,2815.2,0.06744405]
[1769375456253,12.81922213,2816.2,2815.2,0.06744405]
[1769375456421,11.93149391,2816.2,2815.2,0.06744405]
[1769375456818,12.81921929,2816.2,2815.2,0.06744405]
[1769375457236,12.81921929,2816.2,2815.0,0.06744405]
[1769375457635,11.93149391,2816.0,2814.0,0.87459492]
[1769375457839,12.81937259,2815.7,2814.7,0.002]
[1769375458064,11.93149391,2815.7,2814.7,0.002]
[1769375458357,0.001,2815.9,2815.0,0.06744405]
[1769375458669,12.81910997,2816.6,2815.6,0.06744405]
[1769375458966,12.81909221,2816.6,2814.3,9.3771685]
[1769375459259,11.93149391,2816.5,2814.7,0.06944405]
[1769375459887,11.93149391,2816.3,2814.9,0.06744405]
[1769375461362,11.93149391,2816.3,2814.7,0.06944405]
[1769375461561,11.93149391,2816.3,2814.9,0.06744405]
[1769375462047,11.93149391,2816.1,2814.9,0.06744405]
[1769375462374,0.88771279,2816.3,2815.3,0.06744405]
[1769375463443,0.88771279,2816.3,2815.1,0.06744405]
[1769375463647,12.68054918,2816.3,2814.7,0.002]
[1769375464097,11.79283639,2815.9,2814.7,0.002]
[1769375464256,0.88778409,2816.0,2814.7,0.002]
[1769375464257,11.79283639,2815.7,2814.7,0.002]
[1769375466785,11.79283639,2815.5,2814.7,0.002]
[1769375468278,0.88777023,2816.1,2815.2,0.06744405]
[1769375468663,0.88768952,2816.3,2815.2,0.06744405]
[1769375468862,12.68050086,2816.4,2815.3,0.06744405]
[1769375469753,15.34324597,2816.6,2815.5,0.06744405]
[1769375470977,11.79283639,2816.5,2815.3,0.06744405]
[1769375471173,11.79283639,2816.1,2814.9,0.002]
[1769375471704,11.79283639,2816.1,2814.7,0.002]
[1769375471705,11.79283639,2815.7,2814.6,0.002]
[1769375471901,0.128,2816.1,2814.1,0.002]
[1769375471902,11.79283639,2815.3,2814.1,0.002]
[1769375472875,0.88803637,2815.2,2814.1,0.002]
[1769375473381,12.68087276,2815.2,2814.1,0.002]
[1769375473877,12.68087276,2815.2,2813.8,0.002]
[1769375474979,11.79283639,2815.0,2813.8,0.002]
[1769375476184,11.79283639,2815.0,2813.5,0.002]
[1769375476185,0.128,2814.9,2813.5,0.002]
[1769375476364,12.61535234,2814.8,2813.5,0.002]
[1769375476555,12.61535234,2814.8,2813.6,0.06744405]
[1769375477376,0.88819412,2814.7,2813.5,0.002]
[1769375477585,11.87135234,2814.6,2813.5,0.002]
[1769375479460,0.88825723,2814.5,2813.5,0.002]
[1769375479665,12.75960957,2814.5,2813.5,0.002]
[1769375480188,12.75954646,2814.7,2813.5,0.002]
[1769375480366,11.87135234,2814.6,2813.5,0.002]
[1769375481369,11.87135234,2814.6,2813.7,0.002]
[1769375481571,0.88825723,2814.5,2813.7,0.002]
[1769375481768,12.75960957,2814.5,2813.7,0.002]
[1769375491071,12.75960957,2814.5,2812.6,0.95828094]
[1769375491270,12.75960957,2814.5,2812.8,0.06744405]
[1769375491468,12.75960957,2814.5,2812.8,0.95622929]
[1769375491670,12.75960957,2814.5,2812.9,5.82592365]
[1769375491873,12.75960957,2814.5,2813.0,0.06744405]
[1769375492071,3.55302895,2814.6,2812.7,0.06744405]
[1769375492072,11.87135234,2814.1,2812.7,0.06744405]
[1769375492282,0.744,2814.0,2812.7,0.06744405]
[1769375492482,0.744,2814.0,2812.8,5.82592365]
[1769375492690,0.744,2814.0,2812.9,0.06744405]
[1769375493996,0.744,2814.0,2813.2,0.06744405]
[1769375494170,1.63241778,2814.0,2812.9,0.06744405]
[1769375497304,1.63241778,2814.0,2812.8,5.82592365]
[1769375497507,1.63241778,2814.0,2812.9,0.06744405]
[1769375497698,2.15100207,2814.0,2812.9,0.06744405]
[1769375501298,2.15100207,2814.0,2813.0,5.82592365]
[1769375503504,1.40700207,2814.0,2813.1,1.45943421]
[1769375503707,0.51858429,2814.0,2813.1,1.45943421]
[1769375503909,1.40700484,2814.0,2813.1,1.45943421]
[1769375504546,0.51858429,2814.0,2813.1,1.45943421]
[1769375504817,0.744,2814.1,2813.3,0.06944405]
[1769375505577,0.001,2813.8,2813.3,0.06944405]
[1769375506817,0.001,2814.3,2813.7,0.06744405]
[1769375506988,0.001,2814.3,2813.9,0.06744405]
[1769375508319,0.001,2814.3,2813.3,0.89060999]
[1769375508613,12.53352623,2814.3,2813.4,0.67155336]
[1769375508793,12.53352623,2814.3,2813.3,0.002]
[1769375510417,12.53352623,2814.3,2813.4,0.06744405]
[1769375511124,0.001,2814.3,2813.6,0.06744405]
[1769375511725,0.001,2814.3,2813.4,5.8923677]
[1769375512034,0.001,2814.3,2813.6,0.06744405]
[1769375512902,0.001,2814.3,2813.6,0.95598146]
[1769375513106,0.001,2814.3,2813.6,0.95598093]
[1769375513430,0.001,2814.3,2813.6,0.06744405]
[1769375517325,12.53352623,2814.3,2813.5,0.58943677]
[1769375517515,12.53352623,2814.3,2813.4,0.95604853]
[1769375517710,12.53352623,2814.3,2813.8,0.002]
[1769375517898,0.001,2814.1,2813.8,0.002]
[1769375521514,0.0016,3010.1,2813.8,0.002]
[1769375521515,13.42066362,2814.9,2813.8,0.002]
[1769375525027,12.62428127,2814.7,2813.8,0.002]
[1769375526153,12.62428127,2814.5,2813.8,0.002]
[1769375526303,12.62428127,2814.3,2813.5,0.002]
[1769375529435,12.62428127,2814.1,2813.5,0.002]
[1769375530316,12.62428127,2814.1,2813.7,0.002]
[1769375530536,12.62428127,2814.1,2813.5,0.002]
[1769375530736,12.62528127,2814.1,2813.5,0.002]
[1769375531019,0.001,2814.1,2813.5,0.002]
[1769375533715,0.001,2814.1,2813.6,0.06744405]
[1769375535062,0.001,2814.1,2813.5,0.002]
[1769375535362,0.001,2814.1,2813.5,0.68050031]
[1769375537036,0.001,2814.1,2813.5,0.002]
[1769375539858,0.001,2814.1,2813.6,0.06744405]
[1769375540051,0.88824702,2814.6,2813.8,0.06744405]
[1769375540052,12.70056277,2814.6,2813.8,0.06744405]
[1769375542162,0.001,2814.1,2813.8,0.06744405]
[1769375545990,0.001,2814.1,2814.0,0.06744405]
[1769375549342,0.001,2814.1,2814.0,0.75217282]
[1769375549959,12.70056277,2814.9,2814.0,6.57609647]
[1769375550158,12.70056277,2814.9,2814.2,0.06744405]
[1769375550575,12.70056277,2815.4,2814.7,0.06744405]
[1769375550900,12.70056277,2815.4,2814.2,0.81144405]
[1769375551066,12.70056277,2815.4,2814.4,0.06744405]
[1769375552856,12.70056277,2815.4,2814.6,0.06744405]
[1769375553782,12.70056277,2815.4,2814.2,0.06744405]
[1769375554082,12.70056277,2815.4,2814.0,0.06944405]
[1769375554083,13.58854957,2815.4,2814.0,0.06944405]
[1769375554306,12.3672363,2815.3,2814.0,0.06944405]
[1769375555155,12.3672363,2815.1,2814.0,0.06944405]
[1769375555787,12.3672363,2815.1,2814.2,0.06744405]
[1769375555967,12.3672363,2815.1,2814.4,0.06744405]
[1769375556182,12.3672363,2815.1,2814.6,0.06744405]
[1769375556357,13.25516327,2815.6,2814.4,0.06744405]
[1769375556553,13.68472828,2815.6,2814.6,0.06744405]
[1769375557093,12.79680131,2815.6,2814.6,0.06744405]
[1769375557305,12.3672363,2815.6,2815.0,0.06744405]
[1769375558352,12.3672363,2815.6,2814.8,0.06744405]
[1769375558554,13.25514687,2815.6,2814.2,0.88834947]
[1769375558756,12.3672363,2815.5,2814.3,0.06744405]
[1769375558972,12.3672363,2815.5,2814.2,0.06744405]
[1769375559194,12.3672363,2815.3,2814.2,0.06744405]
[1769375560587,12.3672363,2815.3,2814.4,0.06744405]
[1769375561195,12.3672363,2815.1,2814.4,0.06744405]
[1769375562587,12.3672363,2815.1,2814.2,0.06744405]
[1769375562797,12.3672363,2815.1,2814.0,0.06944405]
[1769375563278,12.3672363,2814.9,2814.0,0.06944405]
[1769375565797,13.2553697,2814.9,2814.0,0.06944405]
[1769375566040,12.3672363,2814.9,2814.2,0.06744405]
[1769375569804,12.3672363,2814.9,2814.4,0.06744405]
[1769375571908,12.3672363,2815.3,2814.4,0.06744405]
[1769375572060,12.3672363,2815.3,2814.4,0.66322522]
[1769375573519,12.3672363,2815.3,2814.6,0.06744405]
[1769375573819,12.3672363,2815.3,2814.6,0.06092341]
[1769375574022,13.2552575,2815.3,2814.2,0.06744405]
[1769375574316,12.3672363,2815.2,2814.0,0.002]
[1769375575804,12.3672363,2815.0,2814.0,0.002]
[1769375576593,12.3672363,2815.0,2814.1,0.06744405]
[1769375576793,12.3672363,2815.0,2814.3,0.06744405]
[1769375578358,13.25533736,2815.0,2814.0,0.002]
[1769375583214,13.25533736,2815.0,2813.8,0.002]
[1769375583945,0.128,2814.5,2813.5,0.002]
[1769375584116,3.02410106,2815.0,2813.5,0.002]
[1769375584117,12.4546523,2814.4,2813.5,0.002]
[1769375585018,11.7106523,2814.2,2813.5,0.002]
[1769375585218,11.7106523,2814.0,2813.5,0.002]
[1769375587518,12.59908968,2814.0,2813.5,0.002]
[1769375588053,11.7106523,2814.0,2813.3,0.002]
[1769375588237,12.4546523,2814.3,2813.4,0.06744405]
[1769375589132,12.4546523,2814.3,2813.7,0.002]
[1769375589650,13.34299158,2814.3,2813.7,0.002]
[1769375590646,13.34299158,2814.3,2813.3,0.002]
[1769375591042,13.34299158,2814.3,2813.4,0.06744405]
[1769375591462,13.34299158,2814.3,2813.3,0.002]
[1769375591662,11.7106523,2814.0,2813.3,0.002]
[1769375594372,11.7106523,2814.0,2813.7,0.11056294]
[1769375594665,11.7106523,2814.0,2813.3,0.002]
[1769375596062,12.59906993,2814.0,2813.3,0.002]
[1769375597556,12.59907098,2814.0,2813.3,0.002]
[1769375597783,11.7106523,2814.0,2813.3,0.002]
[1769375598085,12.59907457,2814.0,2813.3,0.002]
[1769375598501,12.59907457,2814.0,2813.0,0.002]
[1769375598658,12.59907457,2814.0,2812.6,0.002]
[1769375598863,11.81189505,2813.8,2812.6,0.002]
[1769375599062,11.81189505,2813.6,2812.6,0.002]
[1769375599287,0.128,2813.7,2812.4,0.002]
[1769375599288,11.81189505,2813.4,2812.4,0.002]
[1769375600209,11.81189505,2813.2,2812.4,0.002]
[1769375600484,3.87218946,2814.4,2812.7,0.06744405]
[1769375600703,11.81189505,2813.9,2813.1,0.06744405]
[1769375600856,11.81189505,2813.9,2813.3,0.06744405]
[1769375601056,11.81189505,2813.9,2813.3,0.03516232]
[1769375601259,11.81289505,2813.8,2813.3,0.03516232]
[1769375601684,11.81289505,2813.8,2813.2,0.002]
[1769375602359,11.81189505,2813.6,2813.2,0.002]
[1769375605297,12.70043972,2813.6,2813.2,0.002]
[1769375605803,13.44443972,2813.6,2813.0,0.002]
[1769375606012,13.44443972,2813.6,2812.5,0.06744405]
[1769375606183,13.44443972,2813.6,2812.7,0.06744405]
[1769375606184,13.83165867,2813.6,2812.7,0.06744405]
[1769375606378,13.83165867,2813.6,2812.9,0.06744405]
[1769375606578,13.44443972,2813.6,2812.9,0.06744405]
[1769375607898,12.55589505,2813.6,2812.9,0.06744405]
[1769375608511,11.81189505,2813.6,2813.0,0.10279162]
[1769375608693,11.81189505,2813.6,2813.0,0.06744405]
[1769375608901,12.55689505,2813.8,2813.2,0.06744405]
[1769375613509,12.55689505,2813.8,2813.6,0.06744405]
[1769375613510,0.001,2813.8,2813.6,0.06744405]
[1769375613726,0.001,2813.8,2813.4,0.06744405]
[1769375614611,0.001,2813.8,2813.6,0.06744405]
[1769375615182,0.001,2813.8,2813.4,0.06744405]
[1769375617110,12.04463154,2813.8,2812.6,0.88882783]
[1769375617315,12.04463154,2813.8,2812.9,0.06744405]
[1769375617688,12.04463154,2813.8,2813.1,0.06744405]
[1769375617883,0.001,2813.8,2813.3,0.06744405]
[1769375618425,0.001,2813.8,2813.1,0.06744405]
[1769375618624,0.001,2813.8,2813.3,0.06744405]
[1769375620597,12.04463154,2813.8,2813.3,0.06744405]
[1769375621187,0.001,2813.8,2813.3,0.06744405]
[1769375621619,13.67595329,2814.3,2813.5,0.06744405]
[1769375621825,12.78763154,2814.3,2813.5,0.06744405]
[1769375622531,13.67595299,2814.3,2813.5,0.06744405]
[1769375622737,12.78763154,2814.3,2813.5,0.06744405]
[1769375625012,12.78763154,2814.3,2813.7,0.06744405]
[1769375625794,0.744,2814.3,2813.7,0.06744405]
[1769375625993,12.04363154,2814.6,2813.9,0.06744405]
[1769375625994,12.93186817,2814.6,2813.9,0.06744405]
[1769375626526,12.93186817,2814.6,2813.9,0.00421526]
[1769375626527,12.04363154,2814.6,2813.9,0.00421526]
[1769375626707,12.04363154,2814.6,2813.9,0.00105382]
[1769375627743,12.04363154,2814.9,2814.1,0.01686102]
[1769375628032,12.04363154,2814.9,2814.1,0.00105382]
[1769375628763,12.04363154,2814.9,2814.3,1e-08]
[1769375628906,0.745,2815.1,2814.1,8.12233765]
[1769375629097,0.745,2815.1,2814.4,0.01543481]
[1769375629424,0.745,2815.1,2814.4,1e-08]
[1769375629925,0.745,2815.1,2814.6,0.06744405]
[1769375630129,0.745,2815.1,2814.6,0.00105382]
[1769375630622,0.745,2815.1,2814.5,0.06744405]
[1769375630824,0.745,2815.1,2814.7,0.00421526]
[1769375631027,0.001,2815.1,2814.7,0.00105382]
[1769375637810,0.001,2814.9,2814.7,0.00105382]
[1769375638010,0.001,2814.9,2814.5,0.06744405]
[1769375638250,0.001,2814.9,2814.3,0.95574312]
[1769375638465,0.001,2814.9,2814.5,0.00210763]
[1769375638747,0.001,2814.9,2814.5,0.00105382]
[1769375639436,0.001,2814.9,2814.7,0.03372203]
[1769375639651,0.001,2814.9,2814.7,0.00105382]
[1769375653974,12.24789932,2814.9,2814.1,0.00105382]
[1769375654174,12.24789932,2814.9,2814.3,0.06744405]
[1769375654672,12.24789932,2814.9,2813.9,0.06744405]
[1769375654673,13.13604437,2814.9,2813.9,0.06744405]
[1769375656089,12.24789932,2814.9,2814.1,0.06744405]
[1769375656245,12.24789932,2814.9,2813.9,0.06744405]
[1769375656588,12.41525973,2814.9,2814.3,0.06744405]
[1769375659679,12.41525973,2814.9,2814.1,0.06744405]
[1769375659874,12.41525973,2814.9,2814.3,0.06744405]
[1769375660275,12.41525973,2814.9,2814.1,0.06744405]
[1769375660276,13.30339088,2814.9,2813.9,0.06744405]
[1769375660573,12.41425973,2814.8,2813.9,0.06744405]
[1769375660781,12.41425973,2814.8,2814.5,0.002]
[1769375660977,12.41425973,2814.6,2813.9,0.06744405]
[1769375661182,12.41425973,2814.6,2814.3,0.002]
[1769375661380,12.41425973,2814.6,2813.9,0.06744405]
[1769375661579,12.41425973,2814.6,2813.5,0.06744405]
[1769375661761,12.41425973,2814.6,2813.3,0.06744405]
[1769375661960,12.41425973,2814.6,2813.5,0.06744405]
[1769375662358,12.41425973,2814.6,2813.7,0.06744405]
[1769375662563,12.41425973,2814.6,2814.3,0.06744405]
[1769375662754,0.001,2814.7,2814.3,0.06744405]
[1769375663184,3.97274535,2814.7,2814.3,0.06744405]